bitfinex/quotes_BTCUSD_20240611
["timestamp","ask_amount","ask_price","bid_price","bid_amount"]
[1718115979047,2.5077286,66898.0,66897.0,0.00186]
[1718115979302,2.05421043,66898.0,66897.0,0.00186]
[1718115979509,2.37389123,66898.0,66897.0,0.00186]
[1718115979734,2.37589123,66898.0,66897.0,0.00186]
[1718115979942,1.8326093,66898.0,66897.0,0.00186]
[1718115980160,1.42574446,66898.0,66897.0,0.00186]
[1718115980361,1.41774446,66898.0,66897.0,0.00086]
[1718115980781,0.52752453,66898.0,66897.0,0.00186]
[1718115981021,0.52752453,66898.0,66897.0,0.005175]
[1718115981022,0.37604353,66898.0,66897.0,0.005175]
[1718115981255,0.36604353,66898.0,66897.0,0.00086]
[1718115981473,0.38904353,66898.0,66897.0,0.00286]
[1718115981926,0.36774167,66898.0,66897.0,0.295675]
[1718115982237,0.37904353,66898.0,66897.0,0.295675]
[1718115982552,0.37274167,66898.0,66897.0,0.295675]
[1718115982781,0.02789236,66898.0,66897.0,0.295675]
[1718115983006,0.02789236,66898.0,66897.0,0.44685614]
[1718115983240,0.00830186,66906.0,66897.0,0.44685614]
[1718115983241,0.0745163,66908.0,66900.0,0.004315]
[1718115983499,0.00830186,66933.0,66897.0,0.28457993]
[1718115983500,0.09064773,66927.0,66926.0,0.004315]
[1718115983717,0.43295979,66930.0,66917.0,0.004315]
[1718115983718,0.18798714,66918.0,66917.0,0.004315]
[1718115983944,0.09064773,66921.0,66914.0,0.4718]
[1718115983945,0.35315117,66915.0,66914.0,0.4718]
[1718115984169,0.42531113,66915.0,66914.0,0.4718]
[1718115984393,0.43638071,66915.0,66914.0,0.4718]
[1718115984868,0.43638071,66915.0,66914.0,0.476115]
[1718115985091,0.42807885,66915.0,66914.0,0.476115]
[1718115985517,0.43638071,66915.0,66914.0,0.4748]
[1718115985732,0.42807885,66915.0,66914.0,0.4748]
[1718115985952,0.35591889,66915.0,66914.0,0.479115]
[1718115986410,0.36422075,66915.0,66914.0,0.479115]
[1718115986851,0.35591889,66915.0,66914.0,0.007315]
[1718115987076,0.35591889,66915.0,66914.0,0.005315]
[1718115987569,0.31624748,66915.0,66914.0,0.009315]
[1718115988015,0.32454934,66915.0,66914.0,0.009315]
[1718115988244,0.31624748,66915.0,66914.0,0.009315]
[1718115988676,0.32454934,66915.0,66914.0,0.009315]
[1718115988932,0.31624748,66915.0,66914.0,0.009315]
[1718115989650,0.1365622,66915.0,66914.0,0.009315]
[1718115989920,0.04591447,66915.0,66914.0,0.009315]
[1718115990398,0.1365622,66915.0,66914.0,0.009315]
[1718115990847,0.1365622,66915.0,66914.0,0.005315]
[1718115991316,0.1365622,66915.0,66914.0,0.008315]
[1718115992257,0.31624748,66915.0,66914.0,0.008315]
[1718115992485,0.31624748,66915.0,66914.0,0.007315]
[1718115992711,0.31624748,66915.0,66914.0,0.008315]
[1718115993834,0.1365622,66915.0,66914.0,0.008315]
[1718115994064,0.31624748,66915.0,66914.0,0.008315]
[1718115994955,0.1365622,66915.0,66914.0,0.008315]
[1718115996493,0.38840744,66915.0,66914.0,0.008315]
[1718115997378,0.3967093,66915.0,66914.0,0.008315]
[1718115998291,0.38840744,66915.0,66914.0,0.008315]
[1718115998514,0.3967093,66915.0,66914.0,0.008315]
[1718115998724,0.4517093,66915.0,66914.0,0.008315]
[1718116000602,0.4517093,66915.0,66914.0,0.004]
[1718116000828,0.9177523,66915.0,66914.0,0.004]
[1718116001055,1.0567523,66915.0,66914.0,0.004]
[1718116001281,2.08883346,66915.0,66914.0,0.003]
[1718116001519,2.22631247,66915.0,66914.0,0.33918541]
[1718116001789,1.91453724,66915.0,66914.0,0.33718541]
[1718116002032,1.73743724,66915.0,66914.0,0.34018541]
[1718116002508,1.73743724,66915.0,66914.0,0.33718541]
[1718116003205,1.73743724,66915.0,66914.0,0.33618541]
[1718116003912,1.74543724,66915.0,66914.0,0.33718541]
[1718116004138,1.74743724,66915.0,66914.0,0.33818541]
[1718116006572,1.74818661,66915.0,66914.0,0.33818541]
[1718116007036,1.60995823,66915.0,66914.0,0.33818541]
[1718116007249,1.74543778,66915.0,66914.0,0.33868541]
[1718116007517,0.79747189,66915.0,66914.0,0.33868541]
[1718116007992,0.66199234,66915.0,66914.0,0.33868541]
[1718116008212,0.67199234,66915.0,66914.0,0.33868541]
[1718116009847,0.66199234,66915.0,66914.0,0.33868541]
[1718116011207,0.53899234,66915.0,66914.0,0.33868541]
[1718116012328,0.53099234,66915.0,66914.0,0.33768541]
[1718116012545,0.52899234,66915.0,66914.0,0.33668541]
[1718116012754,0.53499234,66915.0,66914.0,0.33668541]
[1718116014820,0.53699234,66915.0,66914.0,0.33768541]
[1718116015265,0.53699234,66915.0,66914.0,0.34200041]
[1718116015493,0.53699234,66915.0,66914.0,0.33768541]
[1718116016870,0.52555576,66915.0,66914.0,0.33768541]
[1718116017344,0.53712561,66915.0,66914.0,0.33768541]
[1718116018886,0.53712561,66915.0,66914.0,0.33854541]
[1718116019319,0.52555576,66915.0,66914.0,0.33854541]
[1718116019531,0.52555576,66915.0,66914.0,0.34286041]
[1718116019753,0.53712561,66915.0,66914.0,0.34286041]
[1718116019981,0.53807161,66915.0,66914.0,0.34286041]
[1718116020211,0.53807161,66915.0,66914.0,0.90188034]
[1718116020212,0.07551585,66915.0,66914.0,0.90188034]
[1718116020657,0.063946,66915.0,66914.0,0.90188034]
[1718116021145,0.52050176,66915.0,66914.0,0.33854541]
[1718116021603,0.53007161,66915.0,66914.0,0.33854541]
[1718116022060,0.53007161,66915.0,66914.0,0.34654541]
[1718116022279,0.53007161,66915.0,66914.0,0.33754541]
[1718116022503,0.53007161,66915.0,66914.0,0.33854541]
[1718116022717,0.53007161,66915.0,66914.0,0.34654541]
[1718116024479,0.53007161,66915.0,66914.0,0.34554541]
[1718116024709,0.53007161,66915.0,66914.0,0.33754541]
[1718116024933,0.53007161,66915.0,66914.0,0.33854541]
[1718116025148,0.53007161,66915.0,66914.0,0.34286041]
[1718116025149,0.38062861,66915.0,66914.0,0.34286041]
[1718116026237,0.37232675,66915.0,66914.0,0.34286041]
[1718116026664,0.33784886,66915.0,66914.0,0.34286041]
[1718116026878,0.33784886,66915.0,66914.0,0.75156041]
[1718116027100,0.33784886,66915.0,66914.0,0.90100541]
[1718116027344,0.14659373,66915.0,66914.0,0.90100541]
[1718116027567,0.14659373,66915.0,66914.0,0.90270355]
[1718116027783,0.15817143,66915.0,66914.0,0.90270355]
[1718116028013,0.15817143,66915.0,66914.0,1.04532534]
[1718116028461,0.14659373,66915.0,66914.0,1.04532534]
[1718116029113,0.15817143,66915.0,66914.0,1.04532534]
[1718116030186,0.15817143,66915.0,66914.0,1.04702348]
[1718116030407,0.0675237,66915.0,66914.0,1.04702348]
[1718116030626,0.055946,66915.0,66914.0,1.04702348]
[1718116031928,0.055946,66915.0,66914.0,1.09463691]
[1718116032157,0.055946,66915.0,66914.0,1.13928567]
[1718116032390,0.02193646,66915.0,66914.0,1.67841328]
[1718116032609,0.02193646,66915.0,66914.0,1.79003518]
[1718116032822,0.02193646,66915.0,66914.0,1.65809856]
[1718116033029,0.02193646,66915.0,66914.0,1.76887079]
[1718116033248,0.02193646,66915.0,66914.0,1.66175532]
[1718116033484,0.02193646,66915.0,66914.0,1.68457764]
[1718116033739,0.02193646,66915.0,66914.0,1.65626292]
[1718116033956,0.02193646,66915.0,66914.0,1.66426292]
[1718116034180,0.02193646,66915.0,66914.0,1.63696421]
[1718116034394,0.02193646,66915.0,66914.0,1.6847283]
[1718116034830,0.02193646,66915.0,66914.0,1.77410928]
[1718116035044,0.02193646,66915.0,66914.0,1.6837283]
[1718116035270,0.02193646,66915.0,66914.0,1.52627413]
[1718116035485,0.02193646,66915.0,66914.0,1.70063201]
[1718116035662,0.02193646,66915.0,66914.0,1.70163201]
[1718116036115,0.02193646,66915.0,66914.0,1.79099397]
[1718116036349,0.02193646,66915.0,66914.0,1.54498224]
[1718116036565,0.02193646,66915.0,66914.0,1.77130163]
[1718116037494,0.02193646,66915.0,66914.0,1.77133462]
[1718116037750,0.02193646,66915.0,66914.0,1.6819902]
[1718116037965,0.02193646,66915.0,66914.0,1.77133462]
[1718116038170,0.02193646,66915.0,66914.0,1.04691379]
[1718116038608,0.02193646,66915.0,66914.0,1.1139059]
[1718116038788,0.02193646,66915.0,66914.0,0.93425179]
[1718116039148,0.02193646,66915.0,66914.0,0.88959037]
[1718116039349,0.02193646,66915.0,66914.0,0.93425126]
[1718116040233,0.02193646,66915.0,66914.0,0.88959037]
[1718116040659,0.02193646,66915.0,66914.0,0.93424351]
[1718116041075,0.02193646,66915.0,66914.0,0.88959037]
[1718116041284,0.02193646,66915.0,66914.0,0.9342415]
[1718116041899,0.02193646,66915.0,66914.0,0.93423943]
[1718116042966,0.02193646,66915.0,66914.0,0.88959037]
[1718116043393,0.02193646,66915.0,66914.0,0.93423943]
[1718116044385,0.02193646,66915.0,66914.0,0.95454005]
[1718116044599,0.02193646,66915.0,66914.0,0.90990509]
[1718116045290,0.02193646,66915.0,66914.0,0.95453749]
[1718116045790,0.01793646,66915.0,66914.0,0.95453749]
[1718116046477,0.01793646,66915.0,66914.0,0.90677414]
[1718116046676,0.01767046,66915.0,66914.0,0.95449702]
[1718116047112,0.01767046,66915.0,66914.0,0.9341823]
[1718116047364,0.01767046,66915.0,66914.0,1.0664499]
[1718116048027,0.01167046,66915.0,66914.0,1.38565562]
[1718116048247,0.00267146,66915.0,66914.0,1.58106773]
[1718116048457,0.00267146,66915.0,66914.0,1.85078811]
[1718116048934,0.00267146,66915.0,66914.0,1.82841376]
[1718116049101,0.00267146,66915.0,66914.0,1.72121376]
[1718116049310,0.00267146,66915.0,66914.0,1.71321376]
[1718116049533,0.00267146,66915.0,66914.0,1.71421376]
[1718116049756,0.00267146,66915.0,66914.0,1.72221376]
[1718116049972,0.00267146,66915.0,66914.0,1.63196544]
[1718116050195,0.00267146,66915.0,66914.0,1.62396544]
[1718116050422,0.00267146,66915.0,66914.0,1.72221376]
[1718116050693,0.00267146,66915.0,66914.0,1.72218876]
[1718116052110,0.00267146,66915.0,66914.0,1.42714485]
[1718116052309,0.00267146,66915.0,66914.0,1.62895694]
[1718116054425,0.00267146,66915.0,66914.0,1.74054537]
[1718116054903,0.03447789,66933.0,66932.0,0.00601314]
[1718116055165,0.03447789,66934.0,66933.0,0.004315]
[1718116055420,0.1534,66936.0,66935.0,0.00601314]
[1718116055668,0.17024773,66940.0,66935.0,0.00601314]
[1718116055669,0.03447789,66938.0,66937.0,0.004315]
[1718116055911,0.18647789,66938.0,66937.0,0.075015]
[1718116056180,0.27712562,66938.0,66937.0,0.075015]
[1718116057875,0.10663785,66944.0,66940.0,0.00169814]
[1718116058083,0.19728558,66944.0,66943.0,0.075015]
[1718116059333,0.38527272,66944.0,66943.0,0.004315]
[1718116059504,0.62017272,66944.0,66943.0,0.075015]
[1718116059708,0.61187086,66944.0,66943.0,0.075015]
[1718116059932,0.43218558,66944.0,66943.0,0.075015]
[1718116060566,0.43418558,66944.0,66943.0,0.075015]
[1718116060769,0.44592416,66944.0,66943.0,0.075015]
[1718116060981,0.44392416,66944.0,66943.0,0.075015]
[1718116061141,0.44392416,66944.0,66943.0,0.076015]
[1718116062195,0.6319113,66944.0,66943.0,0.076015]
[1718116062547,0.55144948,66944.0,66943.0,0.076015]
[1718116062784,0.55144948,66944.0,66943.0,0.005315]
[1718116062978,0.55144948,66944.0,66943.0,0.076015]
[1718116063856,0.3717642,66944.0,66943.0,0.076015]
[1718116064095,0.10238631,66944.0,66943.0,0.076015]
[1718116064282,0.01173858,66944.0,66943.0,0.076015]
[1718116064487,0.01173858,66944.0,66943.0,0.37141307]
[1718116064707,0.1648,66948.0,66947.0,0.004315]
[1718116064912,0.12512562,66950.0,66947.0,0.004315]
[1718116064913,0.12512562,66950.0,66949.0,0.004315]
[1718116065121,0.09064773,66950.0,66949.0,0.004315]
[1718116065353,0.12512562,66950.0,66949.0,0.004315]
[1718116065555,0.3048109,66950.0,66949.0,0.004315]
[1718116065769,0.3048109,66950.0,66949.0,0.075015]
[1718116066186,0.31311276,66950.0,66949.0,0.075015]
[1718116066626,0.3048109,66950.0,66949.0,0.075015]
[1718116066844,0.31311276,66950.0,66949.0,0.075015]
[1718116067060,0.3048109,66950.0,66949.0,0.075015]
[1718116067268,0.12512562,66950.0,66949.0,0.075015]
[1718116067472,0.12512562,66950.0,66949.0,0.004315]
[1718116068195,0.12512562,66950.0,66949.0,0.076015]
[1718116068434,0.3048109,66950.0,66949.0,0.076015]
[1718116068638,0.12512562,66950.0,66949.0,0.076015]
[1718116070543,0.09064773,66950.0,66949.0,0.076015]
[1718116070945,0.12512562,66950.0,66949.0,0.076015]
[1718116071147,0.09064773,66950.0,66949.0,0.076015]
[1718116073116,0.27033301,66950.0,66949.0,0.076015]
[1718116073319,0.27863487,66950.0,66949.0,0.076015]
[1718116073783,0.27033301,66950.0,66949.0,0.076015]
[1718116074260,0.27863487,66950.0,66949.0,0.076015]
[1718116074933,0.09064773,66950.0,66949.0,0.076015]
[1718116075136,0.27033301,66950.0,66949.0,0.076015]
[1718116075764,0.28211234,66950.0,66949.0,0.076015]
[1718116075967,0.48509209,66950.0,66949.0,0.005315]
[1718116076394,0.48509209,66950.0,66949.0,0.001]
[1718116076617,0.48509209,66950.0,66949.0,0.005315]
[1718116078129,0.48509209,66950.0,66949.0,0.001]
[1718116078335,0.48509209,66950.0,66949.0,0.005315]
[1718116079203,0.48509209,66950.0,66949.0,0.001]
[1718116081080,0.48509209,66950.0,66949.0,0.005315]
[1718116082325,0.47679023,66950.0,66949.0,0.005315]
[1718116082736,0.29710495,66950.0,66949.0,0.005315]
[1718116083818,0.26262706,66950.0,66949.0,0.005315]
[1718116084027,0.10242706,66950.0,66949.0,0.076015]
[1718116085514,0.13690495,66950.0,66949.0,0.076015]
[1718116086331,0.13690495,66950.0,66949.0,0.005315]
[1718116086537,0.13690495,66950.0,66949.0,0.076015]
[1718116086764,0.32489209,66950.0,66949.0,0.076015]
[1718116086958,0.48569209,66950.0,66949.0,0.005315]
[1718116092289,0.29770495,66950.0,66949.0,0.005315]
[1718116092583,0.47739023,66950.0,66949.0,0.005315]
[1718116092809,0.29770495,66950.0,66949.0,0.005315]
[1718116093025,0.47739023,66950.0,66949.0,0.005315]
[1718116093233,0.48569209,66950.0,66949.0,0.005315]
[1718116094776,0.47739023,66950.0,66949.0,0.005315]
[1718116095203,0.48569209,66950.0,66949.0,0.005315]
[1718116096263,0.72775709,66950.0,66949.0,0.001]
[1718116096479,0.96577702,66950.0,66949.0,0.001]
[1718116096694,1.57440068,66950.0,66949.0,0.001]
[1718116096911,1.69566776,66950.0,66949.0,0.001]
[1718116097747,0.22246503,66936.0,66935.0,0.01835797]
[1718116098197,0.18798714,66930.0,66929.0,0.004315]
[1718116098607,0.19967449,66930.0,66929.0,0.004315]
[1718116099676,0.19967449,66930.0,66929.0,0.012315]
[1718116100291,0.19967449,66930.0,66929.0,0.013315]
[1718116100499,0.19137263,66930.0,66929.0,0.013315]
[1718116100656,0.01168735,66930.0,66929.0,0.013315]
[1718116101072,0.03447789,66932.0,66931.0,0.004315]
[1718116101272,0.09064773,66936.0,66935.0,0.083115]
[1718116101471,0.09064773,66936.0,66935.0,0.153815]
[1718116101883,0.27033301,66936.0,66935.0,0.153815]
[1718116102536,0.27863487,66936.0,66935.0,0.083115]
[1718116102736,0.22246503,66934.0,66933.0,0.004315]
[1718116103261,0.22246503,66933.0,66932.0,0.004315]
[1718116104071,0.31311276,66932.0,66931.0,0.001]
[1718116104319,0.27863487,66928.0,66927.0,0.004315]
[1718116104537,0.27863487,66928.0,66919.0,0.08946231]
[1718116104538,0.22246503,66925.0,66924.0,0.004315]
[1718116105032,0.23415238,66925.0,66924.0,0.004315]
[1718116106392,0.23415238,66925.0,66924.0,0.012315]
[1718116107951,0.04616524,66925.0,66924.0,0.093215]
[1718116108393,0.23415238,66925.0,66924.0,0.012315]
[1718116108611,0.04616524,66925.0,66924.0,0.012315]
[1718116109043,0.22585052,66925.0,66924.0,0.012315]
[1718116109221,0.22585052,66925.0,66924.0,0.013315]
[1718116109939,0.04616524,66925.0,66924.0,0.013315]
[1718116111539,0.01168735,66925.0,66924.0,0.37945607]
[1718116111745,0.09064773,66928.0,66927.0,0.004315]
[1718116111951,0.10228948,66928.0,66927.0,0.004315]
[1718116112779,0.10228948,66928.0,66927.0,0.075015]
[1718116113627,0.10228948,66928.0,66927.0,0.08371314]
[1718116113828,0.10228948,66928.0,66927.0,0.22803307]
[1718116113829,0.01164175,66928.0,66927.0,0.22803307]
[1718116114039,0.01164175,66928.0,66927.0,0.45804907]
[1718116114257,0.12512562,66934.0,66933.0,0.004315]
[1718116114733,0.09064773,66934.0,66933.0,0.075015]
[1718116114943,0.09064773,66934.0,66933.0,0.07671314]
[1718116115397,0.09064773,66934.0,66933.0,0.075015]
[1718116115605,0.3046109,66934.0,66933.0,0.076015]
[1718116115818,0.31391276,66934.0,66933.0,0.001]
[1718116116029,0.70451276,66934.0,66933.0,0.001]
[1718116118399,0.71451276,66934.0,66933.0,0.001]
[1718116118609,0.77521276,66934.0,66933.0,0.001]
[1718116118831,0.93020615,66934.0,66933.0,0.001]
[1718116119558,0.95320615,66934.0,66933.0,0.001]
[1718116120097,0.96320615,66934.0,66933.0,0.001]
[1718116120843,0.9748479,66934.0,66933.0,0.001]
[1718116121056,0.9648479,66934.0,66933.0,0.001]
[1718116121249,0.9748479,66934.0,66933.0,0.001]
[1718116122580,0.9041479,66934.0,66933.0,0.001]
[1718116122787,0.9748479,66934.0,66933.0,0.001]
[1718116123213,0.9648479,66934.0,66933.0,0.001]
[1718116124102,0.9648479,66934.0,66933.0,0.00186]
[1718116124318,0.8941479,66934.0,66933.0,0.00186]
[1718116124535,0.9657939,66934.0,66933.0,0.00186]
[1718116124741,0.9757939,66934.0,66933.0,0.00186]
[1718116124976,0.97580628,66934.0,66933.0,0.00186]
[1718116126460,0.96580628,66934.0,66933.0,0.00186]
[1718116126909,0.96580191,66934.0,66933.0,0.00186]
[1718116127345,0.89510191,66934.0,66933.0,0.00186]
[1718116127849,0.66780191,66934.0,66933.0,0.00186]
[1718116129651,0.81720191,66934.0,66933.0,0.00186]
[1718116130105,0.90910191,66934.0,66933.0,0.00186]
[1718116134892,0.97980191,66934.0,66933.0,0.00186]
[1718116136064,0.96980191,66934.0,66933.0,0.00186]
[1718116136281,0.89910191,66934.0,66933.0,0.00186]
[1718116140802,0.81720191,66934.0,66933.0,0.00186]
[1718116142837,0.81719603,66934.0,66933.0,0.00186]
[1718116143617,0.48149603,66934.0,66933.0,0.006175]
[1718116143822,0.48149603,66934.0,66933.0,0.233675]
[1718116144169,0.32650051,66934.0,66933.0,0.233675]
[1718116144347,0.48148866,66934.0,66933.0,0.00186]
[1718116144730,0.4731868,66934.0,66933.0,0.006175]
[1718116145741,0.48148866,66934.0,66933.0,0.006175]
[1718116145946,0.48148866,66934.0,66933.0,0.00186]
[1718116146387,0.48148182,66934.0,66933.0,0.00186]
[1718116146766,0.48148182,66934.0,66933.0,0.006175]
[1718116147974,0.48148182,66934.0,66933.0,0.00186]
[1718116148983,0.48148561,66934.0,66933.0,0.00186]
[1718116150838,0.63088561,66934.0,66933.0,0.00186]
[1718116151059,0.62970189,66934.0,66933.0,0.00186]
[1718116152196,0.47590051,66934.0,66933.0,0.00186]
[1718116152413,0.62984243,66934.0,66933.0,0.00186]
[1718116153472,0.63984243,66934.0,66933.0,0.00186]
[1718116153697,0.97304243,66934.0,66933.0,0.00186]
[1718116155304,1.28305423,66934.0,66933.0,0.00186]
[1718116155534,1.28198369,66934.0,66933.0,0.00186]
[1718116157869,1.58078469,66934.0,66933.0,0.00186]
[1718116158096,1.72510462,66934.0,66933.0,0.00186]
[1718116158882,2.02390562,66934.0,66933.0,0.00186]
[1718116159131,1.65440462,66934.0,66933.0,0.00086]
[1718116159390,1.72510462,66934.0,66933.0,0.00086]
[1718116159846,2.50592804,66934.0,66933.0,0.00086]
[1718116160062,2.52827862,66934.0,66933.0,0.00086]
[1718116160277,2.53227862,66934.0,66933.0,0.00186]
[1718116160494,2.72314894,66934.0,66933.0,0.00186]
[1718116161158,2.72314894,66934.0,66933.0,0.00086]
[1718116161159,2.81914894,66934.0,66933.0,0.00086]
[1718116161584,2.82314894,66934.0,66933.0,0.00186]
[1718116162079,2.73374663,66934.0,66933.0,0.00186]
[1718116162519,2.82309311,66934.0,66933.0,0.00186]
[1718116162726,2.73674663,66934.0,66933.0,0.00286]
[1718116163168,2.73674663,66934.0,66933.0,0.00086]
[1718116163169,2.81913731,66934.0,66933.0,0.00086]
[1718116163578,2.82613731,66934.0,66933.0,0.00286]
[1718116163973,2.73274663,66934.0,66933.0,0.00186]
[1718116164336,2.63524776,66934.0,66933.0,0.00286]
[1718116164710,2.56822689,66934.0,66933.0,0.00286]
[1718116164913,2.63524123,66934.0,66933.0,0.00286]
[1718116165498,2.59691996,66934.0,66933.0,0.00286]
[1718116165701,2.52621996,66934.0,66933.0,0.00286]
[1718116165923,1.90810462,66934.0,66933.0,0.00286]
[1718116166154,1.95278192,66934.0,66933.0,0.00286]
[1718116166356,1.90810462,66934.0,66933.0,0.00286]
[1718116166758,1.75523324,66934.0,66933.0,0.00286]
[1718116166956,1.90687899,66934.0,66933.0,0.00286]
[1718116167167,1.92987899,66934.0,66933.0,0.00286]
[1718116167402,1.92946627,66934.0,66933.0,0.00286]
[1718116167578,2.26157654,66934.0,66933.0,0.00286]
[1718116167782,2.70505395,66934.0,66933.0,0.00286]
[1718116167996,2.66037754,66934.0,66933.0,0.00286]
[1718116168203,2.72739215,66934.0,66933.0,0.00286]
[1718116168426,2.66037754,66934.0,66933.0,0.00286]
[1718116169240,2.72736351,66934.0,66933.0,0.00286]
[1718116169883,2.70503465,66934.0,66933.0,0.00286]
[1718116170100,2.60503465,66934.0,66933.0,0.00286]
[1718116170312,2.70503465,66934.0,66933.0,0.00286]
[1718116170727,2.66037754,66934.0,66933.0,0.00286]
[1718116170932,2.72736351,66934.0,66933.0,0.00286]
[1718116171165,2.66037754,66934.0,66933.0,0.00286]
[1718116171606,2.81757754,66934.0,66933.0,0.00286]
[1718116171822,0.63705576,66915.0,66914.0,0.00136]
[1718116172035,0.88198879,66915.0,66914.0,0.00136]
[1718116172247,0.89364932,66915.0,66914.0,0.00136]
[1718116172667,0.87326925,66915.0,66914.0,0.00136]
[1718116172877,0.97966925,66915.0,66914.0,0.00136]
[1718116173313,0.97966925,66915.0,66914.0,0.00236]
[1718116173756,0.97966925,66915.0,66914.0,0.00136]
[1718116174207,0.82843622,66915.0,66914.0,0.00236]
[1718116174416,0.82843622,66915.0,66914.0,0.00436]
[1718116174830,0.82843622,66915.0,66914.0,0.00236]
[1718116175275,0.83343622,66915.0,66914.0,0.00236]
[1718116176345,0.97818358,66915.0,66914.0,0.00236]
[1718116177437,0.83343622,66915.0,66914.0,0.00236]
[1718116178830,0.97822838,66915.0,66914.0,0.00236]
[1718116179156,0.64680845,66915.0,66914.0,0.00236]
[1718116179915,0.64680845,66915.0,66914.0,0.23626]
[1718116179916,0.4675384,66915.0,66914.0,0.23626]
[1718116180112,0.4675384,66915.0,66914.0,0.240575]
[1718116180113,0.14158615,66915.0,66914.0,0.240575]
[1718116180345,0.32127143,66915.0,66914.0,0.240575]
[1718116180879,0.32957329,66915.0,66914.0,0.240575]
[1718116181293,0.32127143,66915.0,66914.0,0.240575]
[1718116181523,0.32957329,66915.0,66914.0,0.240575]
[1718116181725,0.32127143,66915.0,66914.0,0.240575]
[1718116182125,0.32957329,66915.0,66914.0,0.240575]
[1718116182747,0.14158615,66915.0,66914.0,0.240575]
[1718116183545,0.32127143,66915.0,66914.0,0.240575]
[1718116183746,0.14158615,66915.0,66914.0,0.240575]
[1718116184033,0.05113842,66915.0,66914.0,0.240575]
[1718116184242,0.14158615,66915.0,66914.0,0.240575]
[1718116184889,0.14158615,66915.0,66914.0,0.00236]
[1718116184890,0.50201629,66915.0,66914.0,0.00236]
[1718116190407,0.50201629,66915.0,66914.0,0.006675]
[1718116190880,0.47901629,66915.0,66914.0,0.250775]
[1718116192469,0.47901629,66915.0,66914.0,0.24646]
[1718116194135,0.47901629,66915.0,66914.0,0.250775]
[1718116198283,0.47901629,66915.0,66914.0,0.24646]
[1718116198703,0.46735576,66915.0,66914.0,0.24646]
[1718116198919,0.46735576,66915.0,66914.0,0.250775]
[1718116199132,0.47891125,66915.0,66914.0,0.250775]
[1718116199991,0.47060939,66915.0,66914.0,0.250775]
[1718116200205,0.47891125,66915.0,66914.0,0.24646]
[1718116200418,0.47891125,66915.0,66914.0,0.250775]
[1718116201998,0.32116639,66915.0,66914.0,0.250775]
[1718116202668,0.47891125,66915.0,66914.0,0.00236]
[1718116205014,0.50191125,66915.0,66914.0,0.00236]
[1718116205454,0.51191125,66915.0,66914.0,0.00236]
[1718116205680,0.76001125,66915.0,66914.0,0.00236]
[1718116205909,0.90019759,66915.0,66914.0,0.00236]
[1718116207872,0.89019759,66915.0,66914.0,0.00236]
[1718116208789,0.45435853,66915.0,66914.0,0.006675]
[1718116209017,0.28191553,66915.0,66914.0,0.241875]
[1718116209248,0.05103338,66915.0,66914.0,0.312675]
[1718116209727,0.01655549,66915.0,66914.0,0.46381814]
[1718116209959,0.01655549,66915.0,66914.0,0.97040677]
[1718116210183,0.01655549,66915.0,66914.0,0.81008523]
[1718116210619,0.01655549,66915.0,66914.0,0.87818709]
[1718116210846,0.01155549,66915.0,66914.0,0.87955938]
[1718116211072,0.01155549,66915.0,66914.0,0.79371663]
[1718116211299,0.01255549,66915.0,66914.0,0.73555753]
[1718116211521,0.01255549,66915.0,66914.0,0.66275753]
[1718116211784,0.01155549,66915.0,66914.0,0.65375753]
[1718116212331,0.01155549,66915.0,66914.0,1.49467829]
[1718116212573,0.01155549,66915.0,66914.0,1.53941514]
[1718116213218,0.01255549,66915.0,66914.0,1.55041514]
[1718116213453,0.01155549,66915.0,66914.0,1.38681811]
[1718116213684,0.01155549,66915.0,66914.0,1.38481811]
[1718116213913,0.01255549,66915.0,66914.0,1.39381811]
[1718116214157,0.01255549,66915.0,66914.0,1.39581811]
[1718116214378,0.01255549,66915.0,66914.0,1.11724183]
[1718116214601,0.00391212,66915.0,66914.0,1.10824183]
[1718116214822,0.00391212,66915.0,66914.0,1.08592711]
[1718116215043,0.00491212,66915.0,66914.0,1.09692711]
[1718116215504,0.001,66915.0,66914.0,1.20867172]
[1718116215949,0.001,66915.0,66914.0,0.92002711]
[1718116216387,0.001,66915.0,66914.0,0.80945099]
[1718116216854,0.001,66915.0,66914.0,0.76475753]
[1718116217085,0.001,66915.0,66914.0,0.8094511]
[1718116218453,0.001,66915.0,66914.0,0.7825488]
[1718116218672,0.001,66915.0,66914.0,0.78085066]
[1718116218912,0.001,66915.0,66914.0,0.7825488]
[1718116219837,0.001,66915.0,66914.0,1.00063937]
[1718116220062,0.001,66915.0,66914.0,1.02095409]
[1718116220268,0.001,66915.0,66914.0,0.95341487]
[1718116221339,0.001,66915.0,66914.0,1.06265021]
[1718116221551,0.001,66915.0,66914.0,1.04233549]
[1718116222016,0.001,66915.0,66914.0,0.93064126]
[1718116222467,0.001,66915.0,66914.0,0.84955242]
[1718116222909,0.001,66915.0,66914.0,0.95275131]
[1718116223570,0.001,66915.0,66914.0,1.31716442]
[1718116223810,0.000946,66933.0,66932.0,0.00601314]
[1718116224039,0.000946,66933.0,66932.0,0.29973807]
[1718116224255,0.01172484,66933.0,66932.0,0.56492807]
[1718116224494,0.09044773,66941.0,66933.0,0.15110114]
[1718116224727,0.09044773,66941.0,66933.0,0.56632398]
[1718116224959,0.09044773,66941.0,66933.0,0.49935669]
[1718116225203,0.09044773,66941.0,66933.0,0.54398111]
[1718116225647,0.09044773,66941.0,66933.0,0.49935669]
[1718116225870,0.001946,66934.0,66933.0,0.50835669]
[1718116226346,0.000946,66934.0,66933.0,0.49935669]
[1718116226559,0.001946,66934.0,66933.0,0.50835669]
[1718116227038,0.001946,66934.0,66933.0,0.52867141]
[1718116227265,0.001946,66934.0,66933.0,0.50835669]
[1718116227518,0.001946,66934.0,66933.0,0.52867141]
[1718116227749,0.001946,66934.0,66933.0,0.53067141]
[1718116228215,0.000946,66934.0,66933.0,0.52167141]
[1718116228431,0.000946,66934.0,66933.0,0.51967141]
[1718116228584,0.001946,66934.0,66933.0,0.52767141]
[1718116228789,0.001946,66934.0,66933.0,0.52967141]
[1718116228992,0.000946,66934.0,66933.0,0.52167141]
[1718116229195,0.001946,66934.0,66933.0,0.52967141]
[1718116229697,0.000946,66934.0,66933.0,0.52167141]
[1718116229894,0.000946,66934.0,66933.0,0.52967141]
[1718116230130,0.001946,66934.0,66933.0,0.52767141]
[1718116230325,0.001946,66934.0,66933.0,0.50735669]
[1718116230892,0.001946,66934.0,66933.0,0.50935669]
[1718116231693,0.000946,66934.0,66933.0,0.50135669]
[1718116231900,0.001946,66934.0,66933.0,0.50935669]